[Event "EICC 2025"]
[Site "Eforie-Nord"]
[Date "2025.03.16"]
[Round "2.32"]
[White "Aizenberg, Benny"]
[Black "Erdogmus, Yagiz Kaan"]
[Result "0-1"]
[Annotator "TA"]
[ECO "C78"]
[WhiteElo "2441"]
[BlackElo "2605"]
[PlyCount "148"]
[EventDate "2025.03.14"]
[EventType "swiss"]
[EventCountry "ROU"]
[SourceTitle "playchess.com"]
[Source "ChessBase"]
[SourceQuality "1"]
[TimeControl "40/5400+30:1800+30"]

{[%evp 13,148,35,47,29,60,43,88,89,65,82,78,-4,-2,-8,21,-23,-27,-30,-29,-25,0,-13,12,-12,27,-61,-51,-60,-42,-55,-48,-48,-61,-57,-44,-54,-53,-49,-41,-71,-64,-65,-57,-77,-72,-81,-75,-54,-14,-43,-36,-38,-31,-37,-22,-79,-43,-89,-60,-57,-66,-97,-93,-96,-51,-45,-41,-52,-36,-80,-54,-53,-58,-59,-14,-12,-15,-9,-6,-45,-45,-60,0,0,0,0,0,0,0,-16,-15,-14,-15,-16,0,-98,-98,-98,-96,-245,-222,-472,-477,-497,-483,-427,-412,-830,-804,-769,-606,-1645,-1431,-12706,-9850,-29961,-29961,-29960,-29961,-29959,-29960,-29965,-29965,-29966,-29965,-29971,-5428,-29986,-29987,-29987,-29988,-29988,-29989,-29989,-29990,-29990,-29991]} 1. e4 {[%emt 0:00:03]} e5 {[%emt 0:00:27]} 2. Nf3 {[%emt 0:00:04]} Nc6 {[%emt 0:00:03]} 3. Bb5 {[%emt 0:00:05]} a6 {[%emt 0:00:03]} 4. Ba4 {[%emt 0:00:05]} Nf6 {[%emt 0:00:03]} 5. O-O {[%emt 0:00:07]} Bc5 {[%emt 0:00:09]} 6. c3 {[%emt 0:01:13]} O-O {[%emt 0:00:11]} 7. d4 {[%emt 0:00:10]} Ba7 {[%emt 0:00:06]} 8. Bg5 {[%emt 0:09:02] 8.Re1 is the modern continuation. C78: Ruy Lopez: Archangelsk and Möller Defences.} h6 {[%emt 0:00:10]} 9. Bh4 {[%emt 0:12:12]} d6 {[%emt 0:00:12]} 10. Bxc6 $1 {[%emt 0:13:15] White is better.} bxc6 {[%emt 0:00:05]} 11. dxe5 {[%emt 0:00:05]} dxe5 {[%emt 0:00:05]} 12. Qc2 {[%emt 0:00:32]} (12. Nxe5 $16 Qe7 13. Nf3 (13. Nxc6 Qxe4 14. Nxa7 Bb7 $14) 13... Qxe4 14. b3) 12... Qe7 $11 {[%emt 0:20:21]} 13. Nbd2 $146 {[%emt 0:05:33][%cal Bb1d2,Bd2b3,Bb3a5][%mdl 32]} (13. Bg3 Nd7 14. Nbd2 a5 15. Kh1 Ba6 16. c4 f6 17. Nh4 Qe6 18. Rfd1 Rfd8 19. b3 {0-1 Jezek,J (2470)-Idema,A (2580) Lewkowitz mem-A corr9498 1994}) 13... Qe6 {[%emt 0:11:12] Against Nc4} 14. Bg3 {[%emt 0:08:31]} Nd7 {[%emt 0:03:06]} 15. Rfd1 {[%emt 0:08:09]} f6 {[%emt 0:04:29]} 16. Nb3 {[%emt 0:04:27]} c5 {[%emt 0:12:34][%cal Bc6c5,Bc5c4][%mdl 32]} 17. Qe2 {[%emt 0:02:04]} Rb8 {[%emt 0:10:35]} 18. Nh4 {[%emt 0:03:00]} Kh7 {[%emt 0:01:47]} 19. Nf5 {[%emt 0:05:06]} (19. Na5 $11) 19... c4 $1 $15 {[%emt 0:03:42]} 20. Na5 {[%emt 0:01:20]} g6 $36 {[%emt 0:07:57][%mdl 2048] Black is pushing.} 21. Nh4 {[%emt 0:05:07]} Nc5 {[%emt 0:07:36]} 22. Nf3 {[%emt 0:01:27]} Bd7 $1 {[%emt 0:02:55]} 23. Nxc4 {[%emt 0:04:33] Black has space advantage and is better} Bb5 {[%emt 0:01:11]} 24. b3 {[%emt 0:00:12]} Bxc4 {[%emt 0:01:35]} 25. bxc4 {[%emt 0:00:17]} Na4 {[%emt 0:05:34]} 26. Rac1 {[%emt 0:04:10]} Rb2 {[%emt 0:01:15]} 27. Rd2 {[%emt 0:01:35]} Rfb8 {[%emt 0:00:51]} 28. h4 {[%emt 0:01:12]} Rxd2 {[%emt 0:02:02]} 29. Qxd2 {[%emt 0:00:40][%cal Oh4h5] [#]} Nc5 $1 {[%emt 0:00:28]} (29... Qxc4 $6 30. Qd7+ Kg8 31. h5 gxh5 32. Nh4 $11) 30. Qe2 {[%emt 0:02:17]} Qc6 {[%emt 0:00:47][%mdl 1024] Black has compensation.} 31. Re1 {[%emt 0:00:40][%cal Oh4h5]} (31. h5 {keeps more tension.} Qxe4 32. hxg6+ Qxg6 33. Nh4) 31... h5 {[%emt 0:00:49]} 32. Kh2 {[%emt 0:01:20]} Rd8 {[%emt 0:00:20]} 33. Nd2 {[%emt 0:02:54]} Na4 {[%emt 0:02:38]} 34. Nf1 {[%emt 0:02:37]} (34. Nb3 $11 {remains equal.}) 34... Nxc3 $17 {[%emt 0:00:36]} 35. Qc2 {[%emt 0:01:19]} (35. Qf3 $15 {is more appropriate.} Na4 (35... Nxa2 $2 36. Qb3 $18) (35... Bd4 36. Ne3 $15) 36. Ne3) 35... Bd4 {[%emt 0:00:56] Black is much more active.} (35... Qxc4 36. Ne3 Qd3 (36... Qxe4 $2 37. Qxc3 Rd7 38. Rc1 $18) 37. Qb3 $14) 36. Nd2 {[%emt 0:02:09]} Qa4 {[%emt 0:00:39]} 37. Qxa4 Nxa4 {[%emt 0:00:01]} 38. Nb3 {[%emt 0:00:51]} Bc3 {[%emt 0:01:03]} 39. Rc1 {[%emt 0:00:21]} Rd3 {[%emt 0:00:35]} 40. f3 {[%emt 0:00:44]} Bb4 {[%emt 0:00:30]} 41. Rc2 {[%emt 0:06:45]} Kg7 {[%emt 0:04:54]} 42. f4 {[%emt 0:03:45]} Rc3 {[%emt 0:08:26]} 43. Rxc3 {[%emt 0:04:15]} Bxc3 {[%emt 0:00:25]} 44. fxe5 {[%emt 0:00:09]} fxe5 $15 {[%emt 0:02:10][%mdl 4096] Endgame KBN-KBN} 45. Kg1 {[%emt 0:00:29]} Nb2 {[%emt 0:07:35]} 46. c5 {[%emt 0:03:24]} Kf6 {[%emt 0:01:45]} 47. Kf1 {[%emt 0:02:27]} Ke6 {[%emt 0:01:09]} ({Black should play} 47... Na4 $15 48. Ke2 Bb4) 48. Ke2 $1 $11 {[%emt 0:00:33]} Kd7 {[%emt 0:00:16]} 49. Nd2 {[%emt 0:03:37]} Bxd2 {[%emt 0:01:20]} 50. Kxd2 {[%emt 0:00:04] KB-KN} Kc6 {[%emt 0:00:04]} 51. Ke2 {[%emt 0:00:28]} Nc4 {[%emt 0:01:02]} 52. Bf2 {[%emt 0:00:05]} Kb5 {[%emt 0:00:22]} 53. Kd3 {[%emt 0:03:48]} Nb2+ {[%emt 0:05:26]} (53... Kb4 $5 {[%cal Rc7c6]}) 54. Ke2 {[%emt 0:02:17]} (54. Kc2 $11 Na4 55. Bg3) 54... Kc4 $17 {[%emt 0:00:48]} 55. c6 {[%emt 0:00:59][%cal Of2b6] [#]} Nd3 $1 {[%emt 0:00:56] aiming for ...Nxf2.} 56. Bg1 {[%emt 0:01:18] This move loses the game for White.} (56. Bb6 $17 {was forced.} Nf4+ (56... cxb6 $2 57. c7 $18) 57. Ke3) 56... Nb4 $19 {[%emt 0:00:41]} 57. Bb6 $2 {[%emt 0:00:34]} (57. Ke3) 57... Nxc6 {[%emt 0:00:04]} (57... cxb6 $2 {loses.} 58. c7 $18) 58. Bxc7 {[%emt 0:00:04]} Kd4 {[%emt 0:00:02]} 59. Kf3 {[%emt 0:03:35]} Kd3 {[%emt 0:00:04]} 60. g4 {[%emt 0:00:08]} (60. Kf2 $142 Kxe4 61. Ke2) 60... Nd4+ {[%emt 0:00:09]} 61. Kf2 {[%emt 0:00:22]} Kxe4 {[%emt 0:00:09]} 62. gxh5 {[%emt 0:00:29]} gxh5 {[%emt 0:00:05]} 63. a4 {[%emt 0:02:02]} Nf5 {[%emt 0:00:10]} 64. Bd8 {[%emt 0:00:14]} Kd3 {[%emt 0:00:38]} 65. Kf3 {[%emt 0:00:12]} Nd4+ {[%emt 0:00:01]} 66. Kg3 {[%emt 0:00:45]} e4 {[%emt 0:00:05]} 67. Bb6 {[%emt 0:00:21]} Nf5+ {[%emt 0:01:04]} 68. Kf4 {[%emt 0:00:47]} Nxh4 {[%emt 0:00:05]} 69. Ke5 {[%emt 0:00:07]} Nf3+ {[%emt 0:00:06]} (69... e3 $142 70. Kf4 e2 71. Ba5 Ng2+ 72. Kf3 e1=Q (72... e1=R $2 73. Kxg2 Ra1 74. Kh3 $19) 73. Bxe1 Nxe1+ 74. Kg3 h4+ 75. Kxh4 Kc3 76. Kg5 a5 77. Kf4 Nd3+ 78. Ke4 Nc5+ 79. Ke5 Nxa4 80. Kd5 Nb2 81. Ke6 a4 82. Kf6 a3 83. Kg7 a2 84. Kh6 a1=Q (84... a1=B $2 85. Kg6 $19) 85. Kg6 Qf1 86. Kg7 Qf2 87. Kh6 Qg1 88. Kh5 Nd3 89. Kh4 Ne5 90. Kh3 Kd4 91. Kh4 Qg4#) 70. Kd5 {[%emt 0:00:04]} h4 {[%emt 0:00:08] Black mates.} 71. Kc6 {[%emt 0:00:04]} h3 {[%emt 0:00:08]} 72. Bc7 {[%emt 0:00:04]} e3 {[%emt 0:00:14]} 73. Kb6 {[%emt 0:00:06]} e2 {[%emt 0:00:05]} 74. Bg3 {[%emt 0:00:17]} h2 {[%emt 0:00:14] Weighted Error Value: White=0.29 (precise) /Black=0.08 (flawless)   Mistake:       	White=8     	Black=1      Inaccurate:     	White=6     	Black=7      OK:         	White=21    	Black=15     Best:        	White=4     	Black=9      Strong:       	White=2     	Black=4} 0-1

[Event "EICC 2025"]
[Site "Eforie-Nord"]
[Date "2025.03.16"]
[Round "2.32"]
[White "Kochavi, Ori"]
[Black "Maksimovic, Bojan"]
[Result "1/2-1/2"]
[Annotator "ChessBase"]
[ECO "D02"]
[WhiteElo "2357"]
[BlackElo "2505"]
[PlyCount "91"]
[EventDate "2025.03.14"]
[EventType "swiss"]
[EventCountry "ROU"]
[SourceTitle "playchess.com"]
[Source "ChessBase"]
[SourceQuality "1"]
[TimeControl "40/5400+30:1800+30"]

1. Nf3 {[%emt 0:00:16]} Nf6 {[%emt 0:01:09]} 2. d4 {[%emt 0:00:04]} d5 {[%emt 0:02:04]} 3. c3 {[%emt 0:00:25]} Bf5 {[%emt 0:02:26]} 4. Qb3 {[%emt 0:00:41]} Qc8 {[%emt 0:02:43]} 5. Bg5 {[%emt 0:12:13]} Nbd7 {[%emt 0:03:21]} 6. c4 {[%emt 0:06:43]} dxc4 {[%emt 0:15:21]} 7. Qxc4 {[%emt 0:00:13]} c5 {[%emt 0:01:03]} 8. Nc3 {[%emt 0:13:34]} e6 {[%emt 0:07:44]} 9. dxc5 {[%emt 0:09:08]} Qxc5 {[%emt 0:01:25]} 10. Qa4 {[%emt 0:10:17]} Qb4 {[%emt 0:05:23]} 11. Qxb4 {[%emt 0:02:23]} Bxb4 {[%emt 0:00:07]} 12. Bd2 {[%emt 0:00:09]} Bc5 {[%emt 0:03:07]} 13. e3 {[%emt 0:01:33]} a6 {[%emt 0:14:26]} 14. Be2 {[%emt 0:00:42]} h6 {[%emt 0:01:07]} 15. O-O {[%emt 0:00:12]} Ke7 {[%emt 0:01:20]} 16. Rac1 {[%emt 0:09:52]} Rac8 {[%emt 0:01:05]} 17. Rfd1 {[%emt 0:00:19]} e5 {[%emt 0:07:54]} 18. Be1 {[%emt 0:04:42]} Be6 {[%emt 0:01:41]} 19. Nd2 {[%emt 0:05:18]} Bb4 {[%emt 0:05:33]} 20. Ndb1 {[%emt 0:10:02]} Bd6 {[%emt 0:01:54]} 21. Bf3 {[%emt 0:01:58]} Rc7 {[%emt 0:00:48]} 22. Ne4 {[%emt 0:02:00]} Rxc1 {[%emt 0:02:57]} 23. Rxc1 {[%emt 0:00:05]} Nxe4 {[%emt 0:00:47]} 24. Bxe4 {[%emt 0:00:03]} Nc5 {[%emt 0:01:18]} 25. Nc3 {[%emt 0:00:05]} f5 {[%emt 0:07:51]} 26. Bc2 {[%emt 0:02:36]} Rc8 {[%emt 0:01:20]} 27. Rd1 {[%emt 0:01:22]} Nd7 {[%emt 0:00:10]} 28. e4 {[%emt 0:03:21]} f4 {[%emt 0:00:38]} 29. Bb1 {[%emt 0:01:00]} Nf6 {[%emt 0:04:29]} 30. Kf1 {[%emt 0:01:26]} Bc5 {[%emt 0:00:27]} 31. Bd3 {[%emt 0:01:27]} g5 {[%emt 0:01:04]} 32. Rc1 {[%emt 0:00:32]} Bd4 {[%emt 0:00:34]} 33. b3 {[%emt 0:00:05]} g4 {[%emt 0:00:40]} 34. Nd5+ {[%emt 0:02:03]} Nxd5 {[%emt 0:00:19]} 35. Rxc8 {[%emt 0:00:02]} Bxc8 {[%emt 0:00:17]} 36. exd5 {[%emt 0:00:02]} Kd6 {[%emt 0:00:49]} 37. Be4 {[%emt 0:00:02]} b5 {[%emt 0:01:04]} 38. Bd2 {[%emt 0:01:02]} h5 {[%emt 0:01:39]} 39. g3 {[%emt 0:00:19]} Bb7 {[%emt 0:00:48]} 40. gxf4 {[%emt 0:00:47]} exf4 {[%emt 0:00:28]} 41. Bxf4+ {[%emt 0:30:08]} Kc5 {[%emt 0:02:39]} 42. Bg6 {[%emt 0:00:00]} Bxd5 {[%emt 0:00:10]} 43. Bxh5 {[%emt 0:00:00]} Be6 {[%emt 0:03:38]} 44. f3 {[%emt 0:00:00]} gxf3 {[%emt 0:00:34]} 45. Bxf3 {[%emt 0:00:00]} Kb4 {[%emt 0:02:11]} 46. Bc1 {[%emt 0:00:00]} 1/2-1/2

[Event "EICC 2025"]
[Site "Eforie-Nord"]
[Date "2025.03.16"]
[Round "2.33"]
[White "Ivanchuk, Vasyl"]
[Black "Travadon, Loic"]
[Result "1/2-1/2"]
[Annotator "TA"]
[ECO "D40"]
[WhiteElo "2604"]
[BlackElo "2433"]
[PlyCount "141"]
[EventDate "2025.03.14"]
[EventType "swiss"]
[EventCountry "ROU"]
[SourceTitle "playchess.com"]
[Source "ChessBase"]
[SourceQuality "1"]
[TimeControl "40/5400+30:1800+30"]

{[%evp 11,141,29,20,16,16,28,17,10,0,0,0,1,8,0,0,0,0,1,12,0,18,0,0,7,15,0,0,0,0,0,30,18,5,19,51,38,29,29,33,7,21,29,48,51,48,30,38,22,69,64,85,81,208,218,1102,1076,1264,101,119,40,32,34,34,33,33,33,33,33,33,33,33,33,33,33,33,33,33,33,33,33,33,31,31,31,31,31,31,31,31,31,31,31,31,31,31,31,31,31,417,0,0,0,1439,596,8879,12562,10279,7243,4738,1773,29964,0,0,0,0,0,0,0,0,0,0,0,0,-15,0,0,0,0,0,0,0,0]} 1. d4 {[%emt 0:00:03]} Nf6 {[%emt 0:00:19]} 2. c4 {[%emt 0:00:04]} e6 {[%emt 0:00:05]} 3. Nf3 {[%emt 0:00:11]} d5 {[%emt 0:00:08]} 4. Nc3 {[%emt 0:00:04]} c5 {[%emt 0:00:05]} 5. e3 {[%emt 0:00:22]} a6 {[%emt 0:00:14]} 6. cxd5 {[%emt 0:02:33]} exd5 {[%emt 0:00:08]} 7. b3 {[%emt 0:02:22] D40: Queen's Gambit Declined: Semi-Tarrasch with 5 e3.} Nc6 {[%emt 0:01:37]} 8. Bb2 {[%emt 0:01:23]} Bg4 {[%emt 0:00:27]} 9. Be2 {[%emt 0:00:17]} Bxf3 {[%emt 0:00:14]} 10. Bxf3 {[%emt 0:00:05]} cxd4 {[%emt 0:00:06]} 11. exd4 {[%emt 0:00:02]} Bb4 {[%emt 0:00:08]} 12. O-O {[%emt 0:04:23]} Bxc3 {[%emt 0:00:18]} 13. Qe2+ {[%emt 0:09:11]} Qe7 {[%emt 0:05:18] ...Qxe2 is the strong threat.} 14. Bxc3 {[%emt 0:00:12]} Qxe2 {[%emt 0:00:52]} 15. Bxe2 {[%emt 0:00:07]} Kd7 $146 {[%emt 0:05:25]} (15... Ne4 16. Bb2 O-O 17. Rac1 Rfe8 18. Rfe1 g6 19. f3 Ng5 20. Kf2 Ne6 21. Red1 Rac8 {½-½ Makkar,R (2465)-Grieve,H (2471) London GM-A 2023 (1)}) 16. Bd3 {[%emt 0:09:00]} Rhe8 {[%emt 0:05:50]} 17. f3 {[%emt 0:01:22]} g6 {[%emt 0:02:08]} 18. g4 {[%emt 0:20:15][%cal Bg2g4,Bg4g5][%mdl 32]} Re3 {[%emt 0:05:13]} 19. Rad1 {[%emt 0:01:42]} h5 {[%emt 0:00:37]} 20. Kf2 {[%emt 0:13:59]} Rae8 {[%emt 0:01:59]} 21. g5 {[%emt 0:03:22]} Ng8 {[%emt 0:02:15]} 22. a4 {[%emt 0:06:48]} R3e6 {[%emt 0:17:39]} 23. b4 {[%emt 0:01:47]} Nge7 {[%emt 0:00:44]} 24. b5 $36 {[%emt 0:10:33][%mdl 2048] White has good play.} axb5 {[%emt 0:00:12]} 25. Rb1 {[%emt 0:01:07]} b4 {[%emt 0:01:51]} 26. Bxb4 {[%emt 0:00:03]} Nxb4 {[%emt 0:00:12]} 27. Rxb4 {[%emt 0:00:03]} Kc7 {[%emt 0:01:07]} 28. Rfb1 {[%emt 0:03:47]} Rb8 {[%emt 0:02:05]} 29. Rb5 {[%emt 0:00:20]} Rc6 {[%emt 0:00:51]} (29... Ra6 $11) 30. a5 $14 {[%emt 0:00:46][%cal Ba4a5,Ba5a6,Ba6a7][%mdl 32] White is more active.} Rc3 {[%emt 0:01:16]} 31. a6 {[%emt 0:07:10][%cal Rb5b7]} Rxd3 {[%emt 0:00:13]} (31... b6 $16 32. Ke3 (32. a7 Ra8 $17) 32... Ra3) 32. a7 $1 $18 {[%emt 0:00:55]} Rc8 $2 {[%emt 0:00:08]} (32... Rxd4 $2 33. Rc5+ (33. axb8=R Kxb8 34. Rxb7+ Kc8 $18) (33. axb8=Q+ Kxb8 34. Rxb7+ Kc8 $18) (33. axb8=N b6 $18) (33. axb8=B+ Kd8 $18) 33... Nc6 34. Rxc6+ (34. axb8=R Kd6 $18) (34. axb8=Q+ Kxb8 35. Rxc6 Rc4 $18) (34. axb8=N Kd6 $18) (34. axb8=B+ Kc8 $18) 34... Kxc6 35. axb8=Q $18 (35. axb8=B b5 $18)) (32... Rd2+ $2 33. Ke3 Rc2 34. axb8=Q+ (34. axb8=R Nf5+ 35. Kd3 Kxb8 $18) (34. axb8=B+ Kd8 $18) 34... Kxb8 35. Rxb7+ Ka8 36. Rxe7 $18) (32... Ra8 33. Rxb7+ Kd6) 33. Rxb7+ {[%emt 0:00:21]} Kd8 {[%emt 0:00:05] [#]} 34. Re1 $2 {[%emt 0:01:27]} (34. Ra1 $1 $18 Rxd4 35. Rb8 (35. a8=R Rd2+ 36. Ke1 Rdc2 $18) (35. a8=Q Rxa8 36. Rxa8+ Nc8 $18) 35... Rd2+ 36. Kg3) 34... Nc6 {[%emt 0:03:00] Dodges Rb8} 35. Ra1 {[%emt 0:01:05] Repels Ra3} (35. Rxf7 $16 Nxa7 36. Rxa7) 35... Ra8 $14 {[%emt 0:17:57]} (35... Rxd4 $2 36. a8=Q (36. a8=R Rf4 $18) 36... Rd2+ 37. Kf1 $18) 36. Rxf7 {[%emt 0:00:02]} Ke8 {[%emt 0:00:05] Dodges Rf8+} (36... Rxd4 $2 37. Rf8+ Kc7 38. Rxa8 $18) 37. Rh7 {[%emt 0:00:40]} Rxa7 $1 {[%emt 0:00:07]} 38. Raxa7 {[%emt 0:00:23]} Nxa7 {[%emt 0:00:04]} 39. Rxa7 {[%emt 0:00:03][%mdl 4096] Endgame KR-KR. White is a pawn up.} Kf8 {[%emt 0:00:10] Inhibits Rg7.} 40. Ra4 {[%emt 0:00:39]} h4 $1 {[%emt 0:00:08]} 41. h3 {[%emt 0:22:25]} Kf7 {[%emt 0:01:42]} 42. Ke2 {[%emt 0:00:07]} Rb3 {[%emt 0:00:05]} 43. Ra6 {[%emt 0:00:04]} Rb2+ {[%emt 0:00:19]} 44. Ke3 {[%emt 0:00:03]} Rh2 {[%emt 0:00:07]} 45. Rf6+ {[%emt 0:04:49]} Kg7 {[%emt 0:00:05]} 46. Kf4 {[%emt 0:01:23]} Rxh3 {[%emt 0:00:42]} 47. Kg4 {[%emt 0:00:21]} Rh1 {[%emt 0:01:20]} 48. Rd6 {[%emt 0:00:06]} h3 {[%emt 0:00:07]} 49. Rxd5 {[%emt 0:00:17]} h2 {[%emt 0:01:18] ( -> ...Rg1+)} 50. Kg3 {[%emt 0:00:41]} Kf7 {[%emt 0:02:27]} ({Reject} 50... Rf1 51. Kxh2 Rxf3 52. Kg2 $11) 51. f4 {[%emt 0:05:05]} Rf1 {[%emt 0:00:53]} 52. Kxh2 {[%emt 0:00:02]} Rxf4 {[%emt 0:00:05]} 53. Kg3 {[%emt 0:00:09]} Rf1 {[%emt 0:03:48]} 54. Re5 {[%emt 0:00:58]} Rd1 $2 {[%emt 0:00:22][%mdl 8192]} (54... Kf8 $14) 55. d5 $2 {[%emt 0:01:51]} ({White must play} 55. Re4 $18 Rd3+ 56. Kf4) 55... Rf1 {[%emt 0:00:14]} 56. Kg4 {[%emt 0:00:35]} (56. d6 $5) 56... Rf2 $2 {[%emt 0:00:09][%mdl 8192]} (56... Rd1 $11) 57. d6 $18 {[%emt 0:00:05] Re4 would now be deadly.} Rd2 {[%emt 0:00:09][%cal Od2d1]} 58. Re7+ {[%emt 0:00:05]} Kf8 {[%emt 0:00:03]} 59. Re6 {[%emt 0:00:07]} Kf7 {[%emt 0:00:14]} 60. Rf6+ {[%emt 0:00:11]} Kg7 {[%emt 0:00:04] [#]} 61. Kf4 $2 {[%emt 0:00:22]} (61. Kf3 $1 {mates} Rd1 62. Ke4 Re1+ 63. Kd5 Rd1+ 64. Kc6 Rc1+ 65. Kd7 Rg1 66. Ke7 Rxg5 67. d7) 61... Re2 $1 $11 {[%emt 0:00:19] The position is equal.} 62. Kf3 {[%emt 0:00:40]} (62. d7 $5 Rd2 $8 63. Ke5 Rxd7 64. Ra6 $11) 62... Re5 {[%emt 0:00:27]} 63. Kg4 {[%emt 0:00:31]} (63. d7 $5 Rd5 $8 64. Kf4 $11) 63... Re1 {[%emt 0:00:24]} 64. Kf3 {[%emt 0:01:18]} Re5 $1 {[%emt 0:00:17]} 65. Rf4 {[%emt 0:00:39]} (65. d7 $5 Rd5 $8 66. Ke4 Rxd7 67. Ke5 $11) 65... Rd5 $1 {[%emt 0:00:09] Against Rd4} 66. Kg3 {[%emt 0:00:46]} Rxg5+ {[%emt 0:00:10]} 67. Rg4 {[%emt 0:00:06]} Rxg4+ {[%emt 0:00:12]} 68. Kxg4 {[%emt 0:00:01] Threatening mate with d7.} Kf6 {[%emt 0:00:08]} 69. d7 {[%emt 0:00:20]} Ke7 {[%emt 0:00:05]} 70. Kg5 {[%emt 0:00:04]} Kxd7 {[%emt 0:00:09]} 71. Kxg6 {[%emt 0:02:51] White really could win this.   Weighted Error Value: White=0.24 (precise) /Black=0.61  Loses game:     	---       	Black=2      Missed win:     	White=1     	---        Mistake:       	---       	Black=3      Inaccurate:     	White=1     	Black=3      OK:         	White=27    	Black=30     Best:        	White=2     	Black=5      Strong:       	White=1     	Black=4} 1/2-1/2

[Event "EICC 2025"]
[Site "Eforie-Nord"]
[Date "2025.03.16"]
[Round "2.33"]
[White "Malek, Jan"]
[Black "Obada, Ema"]
[Result "1-0"]
[Annotator "ChessBase"]
[ECO "D37"]
[WhiteElo "2504"]
[BlackElo "2079"]
[PlyCount "69"]
[EventDate "2025.03.14"]
[EventType "swiss"]
[EventCountry "ROU"]
[SourceTitle "playchess.com"]
[Source "ChessBase"]
[SourceQuality "1"]
[TimeControl "40/5400+30:1800+30"]

1. d4 {[%emt 0:00:04]} e6 {[%emt 0:00:09]} 2. c4 {[%emt 0:00:20]} Nf6 {[%emt 0:00:05]} 3. Nf3 {[%emt 0:00:09]} d5 {[%emt 0:00:09]} 4. Nc3 {[%emt 0:00:06]} a6 {[%emt 0:00:07]} 5. cxd5 {[%emt 0:00:05]} exd5 {[%emt 0:00:06]} 6. Bg5 {[%emt 0:00:05]} Be6 {[%emt 0:00:25]} 7. e3 {[%emt 0:00:09]} Nbd7 {[%emt 0:00:58]} 8. h3 {[%emt 0:00:09]} Bd6 {[%emt 0:01:26]} 9. Bd3 {[%emt 0:00:09]} c6 {[%emt 0:00:29]} 10. Bf4 {[%emt 0:00:16]} Qc7 {[%emt 0:02:20]} 11. Qd2 {[%emt 0:00:11]} O-O {[%emt 0:07:11]} 12. O-O {[%emt 0:00:12]} Rfe8 {[%emt 0:03:33]} 13. Rfe1 {[%emt 0:00:26]} h6 {[%emt 0:19:22]} 14. Rac1 {[%emt 0:02:04]} Nb6 {[%emt 0:02:34]} 15. b3 {[%emt 0:06:46]} Rad8 {[%emt 0:04:36]} 16. Bb1 {[%emt 0:15:48]} Qc8 {[%emt 0:16:02]} 17. Ne2 {[%emt 0:12:50]} Ne4 {[%emt 0:11:19]} 18. Qa5 {[%emt 0:01:28]} Bxf4 {[%emt 0:02:19]} 19. Nxf4 {[%emt 0:00:28]} Nd7 {[%emt 0:00:50]} 20. Bxe4 {[%emt 0:22:14]} dxe4 {[%emt 0:00:04]} 21. Nd2 {[%emt 0:00:14]} Nf6 {[%emt 0:00:47]} 22. Nc4 {[%emt 0:02:03]} Nd5 {[%emt 0:04:35]} 23. Nb6 {[%emt 0:00:31]} Nxb6 {[%emt 0:10:54]} 24. Qxb6 {[%emt 0:00:03]} Qd7 {[%emt 0:03:02]} 25. Rc5 {[%emt 0:01:47]} f6 {[%emt 0:05:31]} 26. Rec1 {[%emt 0:04:18]} g5 {[%emt 0:01:01]} 27. Nh5 {[%emt 0:07:00]} Qf7 {[%emt 0:00:14]} 28. Ng3 {[%emt 0:00:42]} f5 {[%emt 0:00:10]} 29. Re5 {[%emt 0:00:52]} Rf8 {[%emt 0:03:39]} 30. Rcc5 {[%emt 0:17:06]} f4 {[%emt 0:00:41]} 31. Nxe4 {[%emt 0:00:08]} fxe3 {[%emt 0:00:20]} 32. fxe3 {[%emt 0:00:05]} Bd5 {[%emt 0:00:38]} 33. Kh2 {[%emt 0:00:18]} Qd7 {[%emt 0:00:50]} 34. Rcxd5 {[%emt 0:01:16]} cxd5 {[%emt 0:00:10]} 35. Qxh6 {[%emt 0:00:30]} 1-0

[Event "EICC 2025"]
[Site "Eforie-Nord"]
[Date "2025.03.16"]
[Round "2.34"]
[White "Ghimpu, Samuel-Timotei"]
[Black "Vocaturo, Daniele"]
[Result "1/2-1/2"]
[Annotator "TA"]
[ECO "D02"]
[WhiteElo "2441"]
[BlackElo "2600"]
[PlyCount "62"]
[EventDate "2025.03.14"]
[EventType "swiss"]
[EventCountry "ROU"]
[SourceTitle "playchess.com"]
[Source "ChessBase"]
[SourceQuality "1"]
[TimeControl "40/5400+30:1800+30"]

{[%evp 10,62,6,12,5,1,6,0,0,0,0,9,0,0,0,-6,-10,-20,-18,-16,-2,0,0,0,0,-20,-16,-11,0,-5,-12,-10,-4,-12,-13,-40,-22,-23,-20,-25,-24,-14,-19,-21,-8,-26,-19,-15,0,0,0,-32,0,0,0]} 1. d4 {[%emt 0:00:57]} Nf6 {[%emt 0:00:57]} 2. Bf4 {[%emt 0:02:11]} d5 {[%emt 0:01:25]} 3. Nf3 {[%emt 0:00:44]} e6 {[%emt 0:02:26]} 4. e3 {[%emt 0:03:12]} Bd6 {[%emt 0:01:25]} 5. Bd3 {[%emt 0:05:16]} Bxf4 {[%emt 0:02:50]} 6. exf4 {[%emt 0:01:57]} Qd6 {[%emt 0:00:50] D02: 1 d4 d5 2 Nf3 sidelines, including 2...Nf6 3 g3 and 2...Nf6 3 Bf4.} 7. Qd2 {[%emt 0:00:29]} b6 {[%emt 0:05:20]} 8. O-O {[%emt 0:03:25]} O-O {[%emt 0:04:39]} 9. Re1 {[%emt 0:03:10]} Ba6 {[%emt 0:03:22]} 10. Bxa6 {[%emt 0:01:17]} Nxa6 {[%emt 0:00:06]} 11. c3 {[%emt 0:03:24] Not much happening anymore} c5 {[%emt 0:03:18]} 12. a4 $146 {[%emt 0:01:40]} (12. Ne5 Ne4 13. Qd3 Nc7 14. Nd2 f6 15. Nef3 Nxd2 16. Qxd2 c4 17. h4 h5 18. g3 Kf7 19. b3 b5 20. Reb1 Rfb8 21. Qc2 g6 22. a4 a6 {½-½ Khanas,V (2305)-Mcdaniel,C (2228) CP-2017-P-00002}) 12... Nb8 {[%emt 0:12:02]} 13. g3 {[%emt 0:03:11]} Nc6 {[%emt 0:00:47]} 14. Qe3 {[%emt 0:02:35]} cxd4 {[%emt 0:05:52]} 15. Nxd4 {[%emt 0:00:52]} Nxd4 {[%emt 0:00:22]} 16. Qxd4 {[%emt 0:00:31]} Qc5 {[%emt 0:00:30]} 17. Rd1 {[%emt 0:03:27]} Rfc8 {[%emt 0:06:03]} 18. Na3 {[%emt 0:01:28][%cal Bb1a3,Ba3c2,Bc2e3][%mdl 32]} Ne4 {[%emt 0:08:00]} (18... Qxd4 19. Rxd4 g6 20. Nc2 Rab8) 19. Nc2 {[%emt 0:11:36]} g6 {[%emt 0:02:16]} (19... Qxd4 {simplifies} 20. Rxd4 Nd6 21. Ne3 g6) 20. Ne3 {[%emt 0:00:58]} Qxd4 {[%emt 0:04:19]} 21. Rxd4 {[%emt 0:04:42]} Nd6 {[%emt 0:01:53]} 22. Kf1 {[%emt 0:01:22]} Rab8 {[%emt 0:03:55]} 23. g4 {[%emt 0:22:28]} b5 {[%emt 0:05:38]} 24. axb5 {[%emt 0:01:00]} Rxb5 {[%emt 0:00:08]} 25. Ra6 {[%emt 0:00:12]} Ne4 {[%emt 0:02:48]} 26. Nd1 {[%emt 0:04:39]} Rc7 {[%emt 0:00:49]} 27. f5 {[%emt 0:02:02]} Nc5 {[%emt 0:07:43]} 28. Rd6 {[%emt 0:01:04]} Nb7 {[%emt 0:01:46]} 29. Ra6 {[%emt 0:00:11]} Nc5 {[%emt 0:00:36]} 30. Rd6 {[%emt 0:00:07]} Nb7 {[%emt 0:01:25]} 31. Ra6 {[%emt 0:00:01]} Nc5 {[%emt 0:01:21] An even fight not without its subleties.   Weighted Error Value: White=0.04 (flawless) /Black=0.05 (flawless)   Inaccurate:     	White=1     	Black=1      OK:         	White=11    	Black=11     Best:        	---       	Black=1} 1/2-1/2